[Event "Early-Titled-Tuesday-Blitz-February-06-2024"]
[Site "Chess.com"]
[Date "2024.02.06"]
[Round "11"]
[White "alekroth65"]
[Black "SouS007"]
[Result "1-0"]
[WhiteElo "2398"]
[BlackElo "2505"]
[TimeControl "180+1"]
[EndTime "10:07:17 PST"]
[Termination "alekroth65 won by checkmate"]

1. d4 {[%clk 0:02:51.8]} 1... Nf6 {[%clk 0:02:59.1]} 2. c4 {[%clk 0:02:51.8]}
2... a6 {[%clk 0:02:58.4]} 3. Nf3 {[%clk 0:02:51.5]} 3... c5 {[%clk 0:02:56.9]}
4. d5 {[%clk 0:02:48.5]} 4... b5 {[%clk 0:02:56.9]} 5. g3 {[%clk 0:02:41.7]}
5... e6 {[%clk 0:02:53.3]} 6. Bg2 {[%clk 0:02:37.6]} 6... exd5 {[%clk
0:02:50.1]} 7. cxd5 {[%clk 0:02:37.3]} 7... Bb7 {[%clk 0:02:51]} 8. e4 {[%clk
0:02:30.6]} 8... d6 {[%clk 0:02:43.1]} 9. O-O {[%clk 0:02:29.8]} 9... Nbd7
{[%clk 0:02:42.4]} 10. Nh4 {[%clk 0:02:27.6]} 10... g6 {[%clk 0:02:41.2]} 11. a4
{[%clk 0:02:25.5]} 11... Bg7 {[%clk 0:02:40.3]} 12. Qe2 {[%clk 0:02:22]} 12...
O-O {[%clk 0:02:38.7]} 13. axb5 {[%clk 0:02:20.3]} 13... axb5 {[%clk 0:02:39.6]}
14. Rxa8 {[%clk 0:02:15.2]} 14... Qxa8 {[%clk 0:02:40.5]} 15. Bf4 {[%clk
0:02:12.2]} 15... Re8 {[%clk 0:02:38.9]} 16. Bxd6 {[%clk 0:01:52.4]} 16... Bxd5
{[%clk 0:02:37.8]} 17. Qxb5 {[%clk 0:01:50.5]} 17... Bxe4 {[%clk 0:02:34.8]} 18.
Nc3 {[%clk 0:01:46.5]} 18... Bxg2 {[%clk 0:02:34.3]} 19. Nxg2 {[%clk 0:01:46.1]}
19... Ne5 {[%clk 0:02:29.2]} 20. Bxe5 {[%clk 0:01:42]} 20... Rxe5 {[%clk
0:02:30.1]} 21. Nf4 {[%clk 0:01:39.9]} 21... g5 {[%clk 0:02:26.1]} 22. Nd3
{[%clk 0:01:37.4]} 22... Re8 {[%clk 0:02:21.9]} 23. Qxc5 {[%clk 0:01:30.7]}
23... Qf3 {[%clk 0:02:21.2]} 24. Ne5 {[%clk 0:01:22.1]} 24... Qh5 {[%clk
0:02:16.3]} 25. Kg2 {[%clk 0:01:14.4]} 25... g4 {[%clk 0:02:11.8]} 26. Nd3
{[%clk 0:01:13.7]} 26... Qh3+ {[%clk 0:02:08.6]} 27. Kg1 {[%clk 0:01:13.6]}
27... Qh6 {[%clk 0:01:58.1]} 28. Nf4 {[%clk 0:01:12.2]} 28... Bf8 {[%clk
0:01:53.3]} 29. Qc6 {[%clk 0:01:11.3]} 29... Qg5 {[%clk 0:01:45.6]} 30. Ncd5
{[%clk 0:01:06.3]} 30... Nxd5 {[%clk 0:01:37.8]} 31. Qxe8 {[%clk 0:01:04.1]}
31... Nxf4 {[%clk 0:01:37.7]} 32. gxf4 {[%clk 0:01:01.9]} 32... Qxf4 {[%clk
0:01:38.6]} 33. Rd1 {[%clk 0:00:55.9]} 33... Kg7 {[%clk 0:01:35.2]} 34. Re1
{[%clk 0:00:54.9]} 34... Bd6 {[%clk 0:01:33.2]} 35. Qe4 {[%clk 0:00:52]} 35...
Qxh2+ {[%clk 0:01:32.7]} 36. Kf1 {[%clk 0:00:52.6]} 36... Qh3+ {[%clk
0:01:32.6]} 37. Ke2 {[%clk 0:00:51.6]} 37... Qh5 {[%clk 0:01:26.4]} 38. Kf1
{[%clk 0:00:47.9]} 38... Qb5+ {[%clk 0:01:23.5]} 39. Qe2 {[%clk 0:00:44.9]}
39... Qh5 {[%clk 0:01:19.7]} 40. Qe4 {[%clk 0:00:43.6]} 40... Qh3+ {[%clk
0:01:02.3]} 41. Ke2 {[%clk 0:00:42.5]} 41... Bf8 {[%clk 0:00:39.8]} 42. Rh1
{[%clk 0:00:38.4]} 42... Qb3 {[%clk 0:00:36.2]} 43. Qxh7+ {[%clk 0:00:32]} 43...
Kf6 {[%clk 0:00:36.7]} 44. Qh4+ {[%clk 0:00:27.5]} 44... Ke5 {[%clk 0:00:36.8]}
45. Qh8+ {[%clk 0:00:24.8]} 45... f6 {[%clk 0:00:35.6]} 46. Rh5+ {[%clk
0:00:17.4]} 46... Ke4 {[%clk 0:00:32]} 47. Qxf8 {[%clk 0:00:16.3]} 47... Qd3+
{[%clk 0:00:23.4]} 48. Ke1 {[%clk 0:00:14.9]} 48... Qb1+ {[%clk 0:00:23.8]} 49.
Ke2 {[%clk 0:00:14]} 49... Qd3+ {[%clk 0:00:23]} 50. Ke1 {[%clk 0:00:14.5]}
50... Qb1+ {[%clk 0:00:23.7]} 51. Kd2 {[%clk 0:00:14.5]} 51... Qc2+ {[%clk
0:00:24.6]} 52. Kxc2 {[%clk 0:00:13.9]} 52... Kf3 {[%clk 0:00:20]} 53. Qxf6+
{[%clk 0:00:13]} 53... Kg2 {[%clk 0:00:20.6]} 54. Rg5 {[%clk 0:00:13.4]} 54...
Kf1 {[%clk 0:00:19.5]} 55. Rxg4 {[%clk 0:00:13]} 55... Ke2 {[%clk 0:00:19.9]}
56. Re4+ {[%clk 0:00:13]} 56... Kf1 {[%clk 0:00:20.5]} 57. f4 {[%clk 0:00:12.9]}
57... Kf2 {[%clk 0:00:20.7]} 58. Qf5 {[%clk 0:00:13.2]} 58... Kf3 {[%clk
0:00:21.2]} 59. Rc4 {[%clk 0:00:13.3]} 59... Ke3 {[%clk 0:00:19.9]} 60. Rc3+
{[%clk 0:00:13.6]} 60... Kf2 {[%clk 0:00:18.4]} 61. Qh5 {[%clk 0:00:11.6]} 61...
Ke1 {[%clk 0:00:19.3]} 62. Qh1+ {[%clk 0:00:11.2]} 62... Ke2 {[%clk 0:00:19.5]}
63. Qg2+ {[%clk 0:00:10.7]} 63... Ke1 {[%clk 0:00:19.3]} 64. Re3# {[%clk
0:00:10.7]} 1-0

[Event "Early-Titled-Tuesday-Blitz-February-06-2024"]
[Site "Chess.com"]
[Date "2024.02.06"]
[Round "11"]
[White "Cambek64"]
[Black "Bkmzzzzz"]
[Result "0-1"]
[WhiteElo "2493"]
[BlackElo "2397"]
[TimeControl "180+1"]
[EndTime "10:07:17 PST"]
[Termination "Bkmzzzzz won on time"]

1. d4 {[%clk 0:02:59]} 1... d5 {[%clk 0:02:59.6]} 2. c4 {[%clk 0:02:59.4]} 2...
dxc4 {[%clk 0:03:00.5]} 3. e3 {[%clk 0:02:58.3]} 3... Nf6 {[%clk 0:03:00.1]} 4.
Bxc4 {[%clk 0:02:58.6]} 4... e6 {[%clk 0:03:00.8]} 5. Nf3 {[%clk 0:02:58.5]}
5... c5 {[%clk 0:03:01.2]} 6. O-O {[%clk 0:02:59]} 6... a6 {[%clk 0:02:59.5]} 7.
a4 {[%clk 0:02:57]} 7... Nc6 {[%clk 0:02:59.1]} 8. Nc3 {[%clk 0:02:56]} 8... Be7
{[%clk 0:02:58.2]} 9. Qe2 {[%clk 0:02:51.2]} 9... cxd4 {[%clk 0:02:58]} 10. Rd1
{[%clk 0:02:51.6]} 10... O-O {[%clk 0:02:58.5]} 11. exd4 {[%clk 0:02:51.4]}
11... Nb4 {[%clk 0:02:57.9]} 12. Ne5 {[%clk 0:02:50]} 12... Nfd5 {[%clk
0:02:54.2]} 13. Ra3 {[%clk 0:02:39.7]} 13... Nb6 {[%clk 0:02:30.7]} 14. Bb3
{[%clk 0:02:30.3]} 14... Bd7 {[%clk 0:01:55.7]} 15. a5 {[%clk 0:02:28.2]} 15...
N6d5 {[%clk 0:01:49.5]} 16. Ra1 {[%clk 0:02:08.3]} 16... Rc8 {[%clk 0:01:44.8]}
17. Bd2 {[%clk 0:02:08.5]} 17... Be8 {[%clk 0:01:36.8]} 18. g3 {[%clk
0:01:58.6]} 18... f6 {[%clk 0:01:29.7]} 19. Nf3 {[%clk 0:01:54.6]} 19... Bf7
{[%clk 0:01:29.8]} 20. h4 {[%clk 0:01:53.1]} 20... Qd7 {[%clk 0:01:28.4]} 21.
Kg2 {[%clk 0:01:51.9]} 21... Rfd8 {[%clk 0:01:09.1]} 22. Ne4 {[%clk 0:01:42.6]}
22... Nc6 {[%clk 0:00:54.5]} 23. Re1 {[%clk 0:00:58.8]} 23... Nc7 {[%clk
0:00:48.2]} 24. Nc5 {[%clk 0:00:48.7]} 24... Bxc5 {[%clk 0:00:47.8]} 25. dxc5
{[%clk 0:00:48.9]} 25... e5 {[%clk 0:00:45.7]} 26. Bxf7+ {[%clk 0:00:46]} 26...
Qxf7 {[%clk 0:00:46.6]} 27. Bc3 {[%clk 0:00:35.9]} 27... Nb5 {[%clk 0:00:45.6]}
28. Bd2 {[%clk 0:00:27.6]} 28... Ncd4 {[%clk 0:00:43.8]} 29. Nxd4 {[%clk
0:00:28.1]} 29... Nxd4 {[%clk 0:00:44.7]} 30. Qe4 {[%clk 0:00:26.2]} 30... Rxc5
{[%clk 0:00:45.1]} 31. Bc3 {[%clk 0:00:17.9]} 31... Qd5 {[%clk 0:00:41.2]} 32.
Bxd4 {[%clk 0:00:15.9]} 32... Qxe4+ {[%clk 0:00:37.8]} 33. Rxe4 {[%clk
0:00:14.9]} 33... Rxd4 {[%clk 0:00:38.5]} 34. Rxd4 {[%clk 0:00:13.6]} 34... exd4
{[%clk 0:00:39.4]} 35. Rd1 {[%clk 0:00:13.5]} 35... Rxa5 {[%clk 0:00:39.4]} 36.
Rxd4 {[%clk 0:00:13.8]} 36... Rb5 {[%clk 0:00:40.1]} 37. Rd2 {[%clk 0:00:13.4]}
37... h6 {[%clk 0:00:40.3]} 38. Kf3 {[%clk 0:00:12.5]} 38... Rb3+ {[%clk
0:00:39.9]} 39. Ke4 {[%clk 0:00:12.5]} 39... Kf7 {[%clk 0:00:37.9]} 40. Kf5
{[%clk 0:00:10.9]} 40... Rb5+ {[%clk 0:00:37.3]} 41. Ke4 {[%clk 0:00:10.5]}
41... Ke6 {[%clk 0:00:37.9]} 42. g4 {[%clk 0:00:07.6]} 42... a5 {[%clk 0:00:36]}
43. f4 {[%clk 0:00:07.3]} 43... g6 {[%clk 0:00:35.6]} 44. Rc2 {[%clk 0:00:05.4]}
44... f5+ {[%clk 0:00:34]} 45. gxf5+ {[%clk 0:00:04.8]} 45... gxf5+ {[%clk
0:00:33.7]} 46. Kd4 {[%clk 0:00:05.4]} 46... Rb4+ {[%clk 0:00:33.7]} 47. Ke3
{[%clk 0:00:05.8]} 47... Kd5 {[%clk 0:00:33.1]} 48. Rd2+ {[%clk 0:00:05.1]}
48... Kc6 {[%clk 0:00:31.3]} 49. Rc2+ {[%clk 0:00:05.1]} 49... Kb6 {[%clk
0:00:31.4]} 50. Rd2 {[%clk 0:00:04.6]} 50... Kc6 {[%clk 0:00:29.3]} 51. h5
{[%clk 0:00:05.2]} 51... Rb3+ {[%clk 0:00:29]} 52. Kd4 {[%clk 0:00:04.2]} 52...
Rh3 {[%clk 0:00:28.3]} 53. Ke5 {[%clk 0:00:04.6]} 53... Rxh5 {[%clk 0:00:28.3]}
54. Rd6+ {[%clk 0:00:04.5]} 54... Kb5 {[%clk 0:00:28.4]} 55. Rd5+ {[%clk
0:00:04.7]} 55... Kb4 {[%clk 0:00:28.3]} 56. Kf6 {[%clk 0:00:03.1]} 56... b5
{[%clk 0:00:25.7]} 57. Kg6 {[%clk 0:00:03]} 57... Rh4 {[%clk 0:00:23.8]} 0-1

[Event "Early-Titled-Tuesday-Blitz-February-06-2024"]
[Site "Chess.com"]
[Date "2024.02.06"]
[Round "11"]
[White "BallottiLuca"]
[Black "goodwilll"]
[Result "0-1"]
[WhiteElo "2365"]
[BlackElo "2501"]
[TimeControl "180+1"]
[EndTime "10:07:17 PST"]
[Termination "goodwilll won on time"]

1. d4 {[%clk 0:03:00.9]} 1... d5 {[%clk 0:02:59.6]} 2. c4 {[%clk 0:03:00]} 2...
e6 {[%clk 0:02:59.4]} 3. Nc3 {[%clk 0:02:59.3]} 3... Nf6 {[%clk 0:02:59.4]} 4.
cxd5 {[%clk 0:02:59]} 4... exd5 {[%clk 0:02:59.4]} 5. Bg5 {[%clk 0:02:57.9]}
5... Be7 {[%clk 0:02:59.4]} 6. e3 {[%clk 0:02:54.7]} 6... O-O {[%clk 0:02:59.3]}
7. Bd3 {[%clk 0:02:53.2]} 7... Nbd7 {[%clk 0:02:58.7]} 8. Nge2 {[%clk
0:02:51.9]} 8... b6 {[%clk 0:02:57.1]} 9. Ng3 {[%clk 0:02:49.8]} 9... g6 {[%clk
0:02:50.5]} 10. h4 {[%clk 0:02:48.4]} 10... c5 {[%clk 0:02:43.5]} 11. Qc2 {[%clk
0:02:39.4]} 11... c4 {[%clk 0:02:31]} 12. Be2 {[%clk 0:02:37.6]} 12... Bb7
{[%clk 0:02:27.1]} 13. Bf3 {[%clk 0:02:37.8]} 13... Re8 {[%clk 0:02:19.2]} 14.
O-O-O {[%clk 0:02:28.6]} 14... Nf8 {[%clk 0:02:00.5]} 15. h5 {[%clk 0:02:20.3]}
15... Ne4 {[%clk 0:01:47.1]} 16. Bxe7 {[%clk 0:01:57]} 16... Qxe7 {[%clk
0:01:48]} 17. hxg6 {[%clk 0:01:29.2]} 17... hxg6 {[%clk 0:01:42.2]} 18. Ngxe4
{[%clk 0:01:09.1]} 18... dxe4 {[%clk 0:01:43.1]} 19. Be2 {[%clk 0:01:09.7]}
19... Rac8 {[%clk 0:01:40]} 20. Rh3 {[%clk 0:01:04.4]} 20... Qg5 {[%clk
0:01:27.3]} 21. g4 {[%clk 0:00:49.6]} 21... b5 {[%clk 0:01:26.2]} 22. Rdh1
{[%clk 0:00:49.4]} 22... b4 {[%clk 0:01:25.1]} 23. Na4 {[%clk 0:00:44.4]} 23...
b3 {[%clk 0:01:20.3]} 24. Qb1 {[%clk 0:00:35.2]} 24... c3 {[%clk 0:01:08.8]} 25.
Nxc3 {[%clk 0:00:31.9]} 25... Bd5 {[%clk 0:00:54.6]} 26. axb3 {[%clk 0:00:20.7]}
26... Bxb3 {[%clk 0:00:53.3]} 27. Bd1 {[%clk 0:00:18.4]} 27... Qb5 {[%clk
0:00:48.3]} 28. Bxb3 {[%clk 0:00:17.4]} 28... Qxb3 {[%clk 0:00:47.8]} 29. Kd2
{[%clk 0:00:17.6]} 29... Rb8 {[%clk 0:00:43.1]} 30. Qc2 {[%clk 0:00:15.2]} 30...
Qxb2 {[%clk 0:00:41.1]} 31. Rb1 {[%clk 0:00:14.8]} 31... Qxc2+ {[%clk
0:00:39.8]} 32. Kxc2 {[%clk 0:00:15.7]} 32... Rbc8 {[%clk 0:00:34.8]} 33. Kd2
{[%clk 0:00:13.6]} 33... Kg7 {[%clk 0:00:31.4]} 34. Rb7 {[%clk 0:00:11.7]} 34...
Ra8 {[%clk 0:00:28]} 35. Rh1 {[%clk 0:00:11.6]} 35... a5 {[%clk 0:00:27.3]} 36.
Ra1 {[%clk 0:00:11.5]} 36... Rec8 {[%clk 0:00:23.4]} 37. Rb5 {[%clk 0:00:10.6]}
37... Ne6 {[%clk 0:00:21.2]} 38. Raxa5 {[%clk 0:00:09]} 38... Rxa5 {[%clk
0:00:20.8]} 39. Rxa5 {[%clk 0:00:09.9]} 39... Re8 {[%clk 0:00:15.7]} 40. Nxe4
{[%clk 0:00:06.8]} 40... Nxd4 {[%clk 0:00:15.1]} 41. exd4 {[%clk 0:00:07.5]}
41... Rxe4 {[%clk 0:00:14.8]} 42. f3 {[%clk 0:00:05.6]} 42... Rxd4+ {[%clk
0:00:14.3]} 43. Ke3 {[%clk 0:00:06.3]} 43... Rd8 {[%clk 0:00:13.7]} 44. Ra7
{[%clk 0:00:05]} 44... Kf6 {[%clk 0:00:13.4]} 45. Ra6+ {[%clk 0:00:05]} 45...
Kg5 {[%clk 0:00:13.1]} 46. Ra5+ {[%clk 0:00:03.2]} 46... Kh4 {[%clk 0:00:12.6]}
47. Ra1 {[%clk 0:00:02.7]} 47... Kg3 {[%clk 0:00:10.1]} 48. Rg1+ {[%clk
0:00:02.1]} 48... Kh2 {[%clk 0:00:08.4]} 49. Ra1 {[%clk 0:00:02.8]} 49... Kg2
{[%clk 0:00:07.4]} 50. Ra2+ {[%clk 0:00:01.9]} 50... Kg3 {[%clk 0:00:06.8]} 0-1

[Event "Early-Titled-Tuesday-Blitz-February-06-2024"]
[Site "Chess.com"]
[Date "2024.02.06"]
[Round "11"]
[White "korkmaz16"]
[Black "KhazhatulyAlikhan"]
[Result "0-1"]
[WhiteElo "2502"]
[BlackElo "2415"]
[TimeControl "180+1"]
[EndTime "10:07:20 PST"]
[Termination "KhazhatulyAlikhan won by resignation"]

1. e4 {[%clk 0:03:00.9]} 1... c5 {[%clk 0:02:59.4]} 2. Nf3 {[%clk 0:03:00.3]}
2... e6 {[%clk 0:03:00.3]} 3. d4 {[%clk 0:03:00.2]} 3... cxd4 {[%clk 0:03:01.2]}
4. Nxd4 {[%clk 0:03:00.3]} 4... a6 {[%clk 0:03:01.6]} 5. c4 {[%clk 0:02:59.7]}
5... Nf6 {[%clk 0:03:01.4]} 6. Nc3 {[%clk 0:02:59.2]} 6... Bb4 {[%clk
0:03:01.5]} 7. e5 {[%clk 0:02:58.3]} 7... Ne4 {[%clk 0:03:01.5]} 8. Qc2 {[%clk
0:02:56.9]} 8... Qa5 {[%clk 0:02:48.8]} 9. Qxe4 {[%clk 0:02:26.8]} 9... Bxc3+
{[%clk 0:02:48.6]} 10. Kd1 {[%clk 0:02:26.1]} 10... Bxd4 {[%clk 0:02:35.5]} 11.
Qxd4 {[%clk 0:02:26.3]} 11... Nc6 {[%clk 0:02:36.1]} 12. Qg4 {[%clk 0:02:26.6]}
12... Qxe5 {[%clk 0:02:34.7]} 13. Bd3 {[%clk 0:02:21.7]} 13... h5 {[%clk
0:02:26.1]} 14. Qe4 {[%clk 0:02:12.5]} 14... Qxe4 {[%clk 0:02:18.9]} 15. Bxe4
{[%clk 0:02:12.7]} 15... f5 {[%clk 0:02:19.6]} 16. Bf3 {[%clk 0:02:08.7]} 16...
Nd4 {[%clk 0:02:16.2]} 17. Be2 {[%clk 0:02:08.8]} 17... b5 {[%clk 0:01:58.9]}
18. Bf4 {[%clk 0:02:01.5]} 18... Nxe2 {[%clk 0:01:55.1]} 19. Kxe2 {[%clk
0:02:01.3]} 19... bxc4 {[%clk 0:01:52.7]} 20. Be5 {[%clk 0:02:01.4]} 20... Kf7
{[%clk 0:01:50.9]} 21. Rac1 {[%clk 0:01:56.6]} 21... d5 {[%clk 0:01:50.5]} 22.
b3 {[%clk 0:01:56.9]} 22... a5 {[%clk 0:01:50.3]} 23. bxc4 {[%clk 0:01:57]}
23... Ba6 {[%clk 0:01:47.7]} 24. Rhd1 {[%clk 0:01:52.8]} 24... Bxc4+ {[%clk
0:01:47.7]} 25. Rxc4 {[%clk 0:01:52.8]} 25... dxc4 {[%clk 0:01:46.1]} 26. Rd7+
{[%clk 0:01:52.8]} 26... Kg6 {[%clk 0:01:02.1]} 27. Rxg7+ {[%clk 0:01:47.4]}
27... Kh6 {[%clk 0:01:02]} 28. Rf7 {[%clk 0:01:27.3]} 28... Rhg8 {[%clk
0:00:46.7]} 29. g3 {[%clk 0:01:26.6]} 29... Rac8 {[%clk 0:00:38.4]} 30. Rf6+
{[%clk 0:01:22]} 30... Rg6 {[%clk 0:00:07.2]} 31. Rf7 {[%clk 0:01:21.5]} 31...
Rgg8 {[%clk 0:00:07.4]} 32. Rf6+ {[%clk 0:01:16.7]} 32... Rg6 {[%clk 0:00:07.8]}
33. Rf7 {[%clk 0:01:16.1]} 33... Rg4 {[%clk 0:00:08.3]} 34. f4 {[%clk
0:01:09.1]} 34... c3 {[%clk 0:00:06.6]} 35. Kd1 {[%clk 0:01:09.4]} 35... c2+
{[%clk 0:00:06.7]} 36. Kc1 {[%clk 0:01:09.4]} 36... Rgg8 {[%clk 0:00:06.3]} 37.
Rf6+ {[%clk 0:01:06.3]} 37... Rg6 {[%clk 0:00:06.7]} 38. Rf7 {[%clk 0:01:06]}
38... h4 {[%clk 0:00:07]} 39. Re7 {[%clk 0:00:48.1]} 39... hxg3 {[%clk 0:00:07]}
40. hxg3 {[%clk 0:00:48.8]} 40... Kh5 {[%clk 0:00:07.7]} 41. Rh7+ {[%clk
0:00:46.2]} 41... Kg4 {[%clk 0:00:08.1]} 42. Rh2 {[%clk 0:00:44.7]} 42... Kxg3
{[%clk 0:00:08.1]} 43. Rxc2 {[%clk 0:00:43]} 43... Rxc2+ {[%clk 0:00:08.9]} 44.
Kxc2 {[%clk 0:00:43.6]} 44... Kf3 {[%clk 0:00:09]} 45. Kb3 {[%clk 0:00:43.9]}
45... Rg2 {[%clk 0:00:08.1]} 46. a3 {[%clk 0:00:43.4]} 46... Re2 {[%clk
0:00:07]} 47. Ka4 {[%clk 0:00:42.5]} 47... Re3 {[%clk 0:00:06.8]} 48. Bd6 {[%clk
0:00:41.4]} 48... Rd3 {[%clk 0:00:06.8]} 49. Bc7 {[%clk 0:00:40.3]} 49... Ke4
{[%clk 0:00:05.6]} 50. Bb8 {[%clk 0:00:34.6]} 50... Kd5 {[%clk 0:00:04.3]} 51.
Be5 {[%clk 0:00:33.8]} 51... Kc6 {[%clk 0:00:03.6]} 52. Kxa5 {[%clk 0:00:33.8]}
52... Rxa3+ {[%clk 0:00:03.5]} 53. Kb4 {[%clk 0:00:34.3]} 53... Re3 {[%clk
0:00:03.8]} 54. Bb8 {[%clk 0:00:32.5]} 54... Re4+ {[%clk 0:00:03.7]} 55. Kc3
{[%clk 0:00:32.7]} 55... Kd5 {[%clk 0:00:04]} 56. Kd3 {[%clk 0:00:32.7]} 56...
Rb4 {[%clk 0:00:04.6]} 57. Be5 {[%clk 0:00:32.3]} 57... Rb3+ {[%clk 0:00:05.4]}
58. Kc2 {[%clk 0:00:32]} 58... Rf3 {[%clk 0:00:05.1]} 59. Kd2 {[%clk 0:00:32.3]}
59... Ke4 {[%clk 0:00:06]} 60. Bc7 {[%clk 0:00:32.2]} 60... Rxf4 {[%clk
0:00:06.6]} 61. Ke2 {[%clk 0:00:32.5]} 61... Rf3 {[%clk 0:00:06.7]} 0-1

[Event "Early-Titled-Tuesday-Blitz-February-06-2024"]
[Site "Chess.com"]
[Date "2024.02.06"]
[Round "11"]
[White "alexrustemov"]
[Black "djano"]
[Result "1-0"]
[WhiteElo "2747"]
[BlackElo "2608"]
[TimeControl "180+1"]
[EndTime "10:07:21 PST"]
[Termination "alexrustemov won by resignation"]

1. d4 {[%clk 0:03:00.9]} 1... g6 {[%clk 0:02:59]} 2. c4 {[%clk 0:03:00.1]} 2...
Bg7 {[%clk 0:02:59.2]} 3. g3 {[%clk 0:03:00.1]} 3... Nf6 {[%clk 0:02:57.9]} 4.
Bg2 {[%clk 0:03:00.1]} 4... d6 {[%clk 0:02:58.5]} 5. Nc3 {[%clk 0:03:00.2]} 5...
O-O {[%clk 0:02:58.1]} 6. Nf3 {[%clk 0:03:00.5]} 6... c5 {[%clk 0:02:58.7]} 7.
O-O {[%clk 0:03:00.1]} 7... Nc6 {[%clk 0:02:58.5]} 8. dxc5 {[%clk 0:03:00.1]}
8... dxc5 {[%clk 0:02:59.4]} 9. Bf4 {[%clk 0:03:00.4]} 9... Nh5 {[%clk
0:02:51.3]} 10. Be3 {[%clk 0:03:00]} 10... Nd4 {[%clk 0:02:48.1]} 11. Qc1 {[%clk
0:02:55.8]} 11... Be6 {[%clk 0:02:30]} 12. b3 {[%clk 0:02:53.8]} 12... Qa5
{[%clk 0:02:28.9]} 13. Bd2 {[%clk 0:02:06.8]} 13... Qa6 {[%clk 0:02:28.5]} 14.
e3 {[%clk 0:01:59.6]} 14... Nc6 {[%clk 0:02:22.3]} 15. a3 {[%clk 0:01:48.9]}
15... Rfd8 {[%clk 0:02:12.3]} 16. Qc2 {[%clk 0:01:49]} 16... Bf5 {[%clk
0:01:59]} 17. Qa2 {[%clk 0:01:43.4]} 17... Bd3 {[%clk 0:01:56.4]} 18. Rfd1
{[%clk 0:01:41.9]} 18... Nf6 {[%clk 0:01:38.9]} 19. Ne1 {[%clk 0:01:36]} 19...
Bf5 {[%clk 0:01:38.7]} 20. Na4 {[%clk 0:01:31.8]} 20... Nd7 {[%clk 0:01:21.4]}
21. Bc3 {[%clk 0:01:29.6]} 21... Bg4 {[%clk 0:00:59.9]} 22. Rd2 {[%clk
0:01:22.2]} 22... b5 {[%clk 0:00:49.9]} 23. Bxg7 {[%clk 0:01:10.7]} 23... Kxg7
{[%clk 0:00:48.6]} 24. cxb5 {[%clk 0:01:06.7]} 24... Qxb5 {[%clk 0:00:48.2]} 25.
Rc1 {[%clk 0:00:53.4]} 25... Rab8 {[%clk 0:00:44.4]} 26. Nd3 {[%clk 0:00:34.8]}
26... Nce5 {[%clk 0:00:29]} 27. Ndxc5 {[%clk 0:00:29.8]} 27... Nxc5 {[%clk
0:00:25.8]} 28. Nxc5 {[%clk 0:00:30.2]} 28... Nf3+ {[%clk 0:00:14.7]} 29. Bxf3
{[%clk 0:00:29.2]} 29... Bxf3 {[%clk 0:00:15.6]} 30. b4 {[%clk 0:00:25.1]} 30...
Rd6 {[%clk 0:00:11.2]} 31. Rxd6 {[%clk 0:00:18]} 31... exd6 {[%clk 0:00:12.1]}
32. Nb3 {[%clk 0:00:18.4]} 32... Qh5 {[%clk 0:00:11.6]} 33. Nd4 {[%clk 0:00:17]}
33... Be4 {[%clk 0:00:09.3]} 34. Qe2 {[%clk 0:00:16.4]} 34... Qd5 {[%clk
0:00:07.4]} 35. f3 {[%clk 0:00:15.2]} 35... Bf5 {[%clk 0:00:07.9]} 36. Nxf5+
{[%clk 0:00:14.5]} 36... Qxf5 {[%clk 0:00:08.5]} 37. Kg2 {[%clk 0:00:11.2]}
37... Re8 {[%clk 0:00:08]} 38. Rd1 {[%clk 0:00:11]} 38... d5 {[%clk 0:00:08.1]}
39. Qd3 {[%clk 0:00:10.8]} 39... Qe6 {[%clk 0:00:06.6]} 40. Kf2 {[%clk 0:00:10]}
40... Kg8 {[%clk 0:00:06.1]} 41. Rd2 {[%clk 0:00:10.2]} 41... Qh3 {[%clk
0:00:06.1]} 42. Kg1 {[%clk 0:00:10]} 42... Qe6 {[%clk 0:00:06.8]} 43. Kg2 {[%clk
0:00:09.5]} 43... Qxe3 {[%clk 0:00:04.5]} 44. Qxe3 {[%clk 0:00:08.9]} 44... Rxe3
{[%clk 0:00:05.4]} 45. a4 {[%clk 0:00:08.4]} 45... Rb3 {[%clk 0:00:04.7]} 46.
Rd4 {[%clk 0:00:08.6]} 46... Ra3 {[%clk 0:00:03.4]} 47. b5 {[%clk 0:00:08.7]}
47... Rb3 {[%clk 0:00:03.2]} 48. g4 {[%clk 0:00:08.9]} 48... Kg7 {[%clk
0:00:03]} 49. g5 {[%clk 0:00:09.4]} 49... Ra3 {[%clk 0:00:03.1]} 50. h4 {[%clk
0:00:09.9]} 50... Ra2+ {[%clk 0:00:03.4]} 51. Kg3 {[%clk 0:00:10.4]} 51... f6
{[%clk 0:00:03.9]} 52. Kf4 {[%clk 0:00:10.8]} 52... fxg5+ {[%clk 0:00:03.9]} 53.
hxg5 {[%clk 0:00:11]} 53... Ra3 {[%clk 0:00:04.2]} 54. Ke5 {[%clk 0:00:10.2]}
54... Rxf3 {[%clk 0:00:04.2]} 55. Rxd5 {[%clk 0:00:10.8]} 55... Ra3 {[%clk
0:00:03.6]} 56. Rd7+ {[%clk 0:00:10.8]} 56... Kg8 {[%clk 0:00:03.9]} 57. Rxa7
{[%clk 0:00:11.5]} 57... Rf3 {[%clk 0:00:04.4]} 58. b6 {[%clk 0:00:11.5]} 58...
Rf5+ {[%clk 0:00:05]} 59. Kd6 {[%clk 0:00:11.5]} 59... Rxg5 {[%clk 0:00:05.6]}
60. b7 {[%clk 0:00:11.6]} 1-0